Dept Family,Entity,Date,Expense Type,Expense Area,Supplier,Transaction Number,Amount
NHS,UHCW NHS TRUST,01/10/2012,INVENTORIES,BALANCE SHEET,ROCHE PRODUCTS LTD,0001123692,"66,420.67 "
NHS,UHCW NHS TRUST,01/10/2012,INVENTORIES,BALANCE SHEET,ROCHE PRODUCTS LTD,0001123696,"44,701.80 "
NHS,UHCW NHS TRUST,01/10/2012,INVENTORIES,BALANCE SHEET,HEALTHCARE PRODUCT (29533813),0001123713,"67,800.00 "
NHS,UHCW NHS TRUST,01/10/2012,INVENTORIES,BALANCE SHEET,ALLIANCE HEALTHCARE,0001123806,"31,735.51 "
NHS,UHCW NHS TRUST,01/10/2012,INVENTORIES,BALANCE SHEET,ROCHE PRODUCTS LTD,0001123875,"29,230.72 "
NHS,UHCW NHS TRUST,01/10/2012,INVENTORIES,BALANCE SHEET,NOVARTIS PHARMACEUTICALS LTD,0001123938,"45,349.32 "
NHS,UHCW NHS TRUST,01/10/2012,SERVICES REC FROM NHS BODIES,CELLULAR PATHOLOGY,HOLOGIC UK LTD,0001308527,"55,917.60 "
NHS,UHCW NHS TRUST,01/10/2012,SERVICES REC FROM NHS BODIES,CELLULAR PATHOLOGY,HOLOGIC UK LTD,0001308528,"55,917.60 "
NHS,UHCW NHS TRUST,01/10/2012,SERVICES REC FROM NHS BODIES,CELLULAR PATHOLOGY,HOLOGIC UK LTD,0001311570,"55,980.00 "
NHS,UHCW NHS TRUST,01/10/2012,SERVICES REC FROM NHS BODIES,CELLULAR PATHOLOGY,HOLOGIC UK LTD,0001312240,"-55,980.00 "
NHS,UHCW NHS TRUST,01/10/2012,OTHER ESTABLISHMENT COSTS,ESTATES,COVENTRY & RUGBY HOSPITAL COMPANY PLC,0001313579,"-55,000.00 "
NHS,UHCW NHS TRUST,01/10/2012,OTHER MISCELLANEOUS,ESTATES,COVENTRY & RUGBY HOSPITAL COMPANY PLC,0001313580,"-41,312.24 "
NHS,UHCW NHS TRUST,01/10/2012,OTHER MISCELLANEOUS,ESTATES,COVENTRY & RUGBY HOSPITAL COMPANY PLC,0001313581,"-174,639.59 "
NHS,UHCW NHS TRUST,01/10/2012,TRAVEL & SUBSISTENCE,RESUS,COVENTRY & RUGBY HOSPITAL COMPANY PLC,0001313686,20.79 
NHS,UHCW NHS TRUST,01/10/2012,TRAVEL & SUBSISTENCE,PGME/MADEL,COVENTRY & RUGBY HOSPITAL COMPANY PLC,0001313686,12.48 
NHS,UHCW NHS TRUST,01/10/2012,TRAVEL & SUBSISTENCE,PGME/MADEL,COVENTRY & RUGBY HOSPITAL COMPANY PLC,0001313686,24.96 
NHS,UHCW NHS TRUST,01/10/2012,TRAVEL & SUBSISTENCE,RESEARCH ACCOUNT,COVENTRY & RUGBY HOSPITAL COMPANY PLC,0001313686,4.16 
NHS,UHCW NHS TRUST,01/10/2012,OTHER ESTABLISHMENT COSTS,ESTATES,COVENTRY & RUGBY HOSPITAL COMPANY PLC,0001313686,-277.08 
NHS,UHCW NHS TRUST,01/10/2012,OTHER ESTABLISHMENT COSTS,ESTATES,COVENTRY & RUGBY HOSPITAL COMPANY PLC,0001313686,"88,550.00 "
NHS,UHCW NHS TRUST,01/10/2012,EDUCATION TRAINING & RES INC,RESEARCH ACCOUNT,COVENTRY & RUGBY HOSPITAL COMPANY PLC,0001313686,207.90 
NHS,UHCW NHS TRUST,01/10/2012,OTHER ESTABLISHMENT COSTS,ESTATES,COVENTRY & RUGBY HOSPITAL COMPANY PLC,0001313686,"85,614.88 "
NHS,UHCW NHS TRUST,01/10/2012,OTHER ESTABLISHMENT COSTS,ESTATES,COVENTRY & RUGBY HOSPITAL COMPANY PLC,0001313686,"3,235.18 "
NHS,UHCW NHS TRUST,01/10/2012,OTHER ESTABLISHMENT COSTS,ESTATES,COVENTRY & RUGBY HOSPITAL COMPANY PLC,0001313686,"16,251.96 "
NHS,UHCW NHS TRUST,01/10/2012,TRAVEL & SUBSISTENCE,RESUS,COVENTRY & RUGBY HOSPITAL COMPANY PLC,0001313902,4.16 
NHS,UHCW NHS TRUST,01/10/2012,OTHER ESTABLISHMENT COSTS,ESTATES,COVENTRY & RUGBY HOSPITAL COMPANY PLC,0001313902,"94,593.98 "
NHS,UHCW NHS TRUST,01/10/2012,OTHER ESTABLISHMENT COSTS,ESTATES,COVENTRY & RUGBY HOSPITAL COMPANY PLC,0001313902,-270.49 
NHS,UHCW NHS TRUST,01/10/2012,OTHER ESTABLISHMENT COSTS,ESTATES,COVENTRY & RUGBY HOSPITAL COMPANY PLC,0001313902,"88,454.17 "
NHS,UHCW NHS TRUST,01/10/2012,OTHER ESTABLISHMENT COSTS,ESTATES,COVENTRY & RUGBY HOSPITAL COMPANY PLC,0001313902,"3,996.16 "
NHS,UHCW NHS TRUST,01/10/2012,OTHER ESTABLISHMENT COSTS,ESTATES,COVENTRY & RUGBY HOSPITAL COMPANY PLC,0001313902,"19,080.69 "
NHS,UHCW NHS TRUST,01/10/2012,OTHER MISCELLANEOUS,ESTATES,COVENTRY & RUGBY HOSPITAL COMPANY PLC,0001313903,"-39,979.58 "
NHS,UHCW NHS TRUST,01/10/2012,POSTAGE,INFORMATION AND COMMS TECH,TNT ARCHIVE SERVICES,0001314028,"161,620.20 "
NHS,UHCW NHS TRUST,01/10/2012,CAPITAL EXPENDITURE IN YEAR,CAPITAL,IMAGING EQUIPMENT LTD,0001356821,"8,640.00 "
NHS,UHCW NHS TRUST,01/10/2012,CAPITAL EXPENDITURE IN YEAR,CAPITAL,IMAGING EQUIPMENT LTD,0001356821,"1,522.55 "
NHS,UHCW NHS TRUST,01/10/2012,CAPITAL EXPENDITURE IN YEAR,CAPITAL,IMAGING EQUIPMENT LTD,0001356821,507.52 
NHS,UHCW NHS TRUST,01/10/2012,CAPITAL EXPENDITURE IN YEAR,CAPITAL,IMAGING EQUIPMENT LTD,0001356821,"5,276.40 "
NHS,UHCW NHS TRUST,01/10/2012,CAPITAL EXPENDITURE IN YEAR,CAPITAL,IMAGING EQUIPMENT LTD,0001356821,"24,733.20 "
NHS,UHCW NHS TRUST,01/10/2012,POSTAGE,ORTHOPAEDICS,IMAGING EQUIPMENT LTD,0001356821,282.00 
NHS,UHCW NHS TRUST,01/10/2012,POSTAGE,INFORMATION AND COMMS TECH,TNT ARCHIVE SERVICES,0001357231,"162,015.20 "
NHS,UHCW NHS TRUST,01/10/2012,DRUGS,RENAL DIALYSIS,UNICARE (BAXTERS RENAL),0001357305,"1,294.20 "
NHS,UHCW NHS TRUST,01/10/2012,DRUGS,RENAL DIALYSIS,UNICARE (BAXTERS RENAL),0001357305,"1,311.12 "
NHS,UHCW NHS TRUST,01/10/2012,DRUGS,RENAL DIALYSIS,UNICARE (BAXTERS RENAL),0001357305,"2,127.84 "
NHS,UHCW NHS TRUST,01/10/2012,DRUGS,RENAL DIALYSIS,UNICARE (BAXTERS RENAL),0001357305,930.93 
NHS,UHCW NHS TRUST,01/10/2012,DRUGS,RENAL DIALYSIS,UNICARE (BAXTERS RENAL),0001357305,"4,987.84 "
NHS,UHCW NHS TRUST,01/10/2012,DRUGS,RENAL DIALYSIS,UNICARE (BAXTERS RENAL),0001357305,"16,130.40 "
NHS,UHCW NHS TRUST,01/10/2012,DRUGS,RENAL DIALYSIS,UNICARE (BAXTERS RENAL),0001357305,"8,025.07 "
NHS,UHCW NHS TRUST,01/10/2012,DRUGS,RENAL DIALYSIS,UNICARE (BAXTERS RENAL),0001357305,395.45 
NHS,UHCW NHS TRUST,01/10/2012,DRUGS,RENAL DIALYSIS,UNICARE (BAXTERS RENAL),0001357305,"35,823.75 "
NHS,UHCW NHS TRUST,01/10/2012,DRUGS,RENAL DIALYSIS,UNICARE (BAXTERS RENAL),0001357305,"7,061.64 "
NHS,UHCW NHS TRUST,01/10/2012,INVENTORIES,BALANCE SHEET,NOVARTIS PHARMACEUTICALS LTD,0001357641,"46,480.37 "
NHS,UHCW NHS TRUST,01/10/2012,SERVICES REC FROM NHS BODIES,CELLULAR PATHOLOGY,HOLOGIC UK LTD,0001497567,"55,917.60 "
NHS,UHCW NHS TRUST,01/10/2012,RENTS & RATES,ESTATES,COVENTRY CITY COUNCIL,0001501780,"282,128.00 "
NHS,UHCW NHS TRUST,01/10/2012,RENTS & RATES,RUGBY ESTATES SERVICES,RUGBY BOROUGH COUNCIL,0001501781,"28,625.00 "
NHS,UHCW NHS TRUST,01/10/2012,INVENTORIES,BALANCE SHEET,A A H PHARMACEUTICALS LTD,0001501816,"310,000.00 "
NHS,UHCW NHS TRUST,01/10/2012,LABORATORY EQUIP - PURCHASES,RUGBY MEDICAL SERVICES,ALPHA LABORATORIES LTD,0001555671,"47,628.00 "
NHS,UHCW NHS TRUST,01/10/2012,MEDICAL & SURGICAL EQUIP MAINT,PAEDIATRICS,G E MEDICAL SYSTEMS LTD,0001555852,"1,485.00 "
NHS,UHCW NHS TRUST,01/10/2012,MEDICAL & SURGICAL EQUIP MAINT,NEONATOLOGY,G E MEDICAL SYSTEMS LTD,0001555852,"31,338.12 "
NHS,UHCW NHS TRUST,01/10/2012,INVENTORIES,BALANCE SHEET,ROCHE PRODUCTS LTD,0001557041,"34,221.60 "
NHS,UHCW NHS TRUST,05/10/2012,INVENTORIES,BALANCE SHEET,GEORGE ELIOT HOSP  NHS TRUST,0001122444,"31,038.60 "
NHS,UHCW NHS TRUST,05/10/2012,BLOOD PRODUCTS,GROUP 18,B P L DIAGNOSTICS PRODUCTS,0001123943,"33,000.00 "
NHS,UHCW NHS TRUST,05/10/2012,BLOOD PRODUCTS,GROUP 18,B P L DIAGNOSTICS PRODUCTS,0001123943,"3,300.00 "
NHS,UHCW NHS TRUST,05/10/2012,BLOOD PRODUCTS,GROUP 18,B P L DIAGNOSTICS PRODUCTS,0001123943,560.00 
NHS,UHCW NHS TRUST,05/10/2012,SERVICES FROM PCTS,CORPORATE FINANCE,WARWICKSHIRE PCT,0001203583,"29,961.36 "
NHS,UHCW NHS TRUST,05/10/2012,BLOOD PRODUCTS,GROUP 18,B P L DIAGNOSTICS PRODUCTS,0001204336,"33,000.00 "
NHS,UHCW NHS TRUST,05/10/2012,BLOOD PRODUCTS,GROUP 18,B P L DIAGNOSTICS PRODUCTS,0001204336,"3,300.00 "
NHS,UHCW NHS TRUST,05/10/2012,BLOOD PRODUCTS,GROUP 18,B P L DIAGNOSTICS PRODUCTS,0001204336,"1,650.00 "
NHS,UHCW NHS TRUST,05/10/2012,SERVICES REC FROM NHS BODIES,CELLULAR PATHOLOGY,HEART OF ENGLAND NHS FOUNDATION TRUST,0001306998,"34,632.00 "
NHS,UHCW NHS TRUST,05/10/2012,OTHER MISCELLANEOUS,CLRN,COVENTRY & WARWICKSHIRE PARTNERSHIP TRST,0001312114,"60,000.00 "
NHS,UHCW NHS TRUST,05/10/2012,SERVICES REC FROM NHS BODIES,MICROBIOLOGY,HEALTHPROTECTIONAGENCY,0001313078,"35,194.08 "
NHS,UHCW NHS TRUST,05/10/2012,MEDICAL & SURGICAL EQUIP MAINT,ONCOLOGY / RADIOTHERAPY,ELEKTA ONCOLOGY SYSTEMS,0001313967,"107,767.21 "
NHS,UHCW NHS TRUST,05/10/2012,MEDICAL & SURGICAL EQUIP MAINT,ONCOLOGY / RADIOTHERAPY,ELEKTA ONCOLOGY SYSTEMS,0001313968,"44,852.97 "
NHS,UHCW NHS TRUST,05/10/2012,MEDICAL & SURGICAL EQUIP MAINT,ONCOLOGY / RADIOTHERAPY,ELEKTA ONCOLOGY SYSTEMS,0001313969,"205,154.39 "
NHS,UHCW NHS TRUST,05/10/2012,CAPITAL EXPENDITURE IN YEAR,CAPITAL,COVENTRY & RUGBY HOSPITAL COMPANY PLC,0001314081,"40,984.25 "
NHS,UHCW NHS TRUST,05/10/2012,BUILDING & ENG EQUIPMENT,ESTATES,COVENTRY & RUGBY HOSPITAL COMPANY PLC,0001314081,"4,669.66 "
NHS,UHCW NHS TRUST,05/10/2012,OTHER MISCELLANEOUS,ESTATES,COVENTRY & RUGBY HOSPITAL COMPANY PLC,0001314139,"-41,312.24 "
NHS,UHCW NHS TRUST,05/10/2012,OTHER ESTABLISHMENT COSTS,ESTATES,COVENTRY & RUGBY HOSPITAL COMPANY PLC,0001314194,"58,511.25 "
NHS,UHCW NHS TRUST,05/10/2012,SERVICES REC FROM NHS BODIES,RENAL TRANSPLANT,NHS BLOOD AND TRANSPLANT,0001356836,"42,103.01 "
NHS,UHCW NHS TRUST,05/10/2012,BLOOD PRODUCTS,THEATRES,NHS BLOOD AND TRANSPLANT,0001356840,"261,078.69 "
NHS,UHCW NHS TRUST,05/10/2012,DRUGS,RHEUMATOLOGY,NHS BUSINESS SERVICES AUTHORITY,0001357311,"196,486.20 "
NHS,UHCW NHS TRUST,05/10/2012,DRUGS,DERMATOLOGY,NHS BUSINESS SERVICES AUTHORITY,0001357311,"10,199.58 "
NHS,UHCW NHS TRUST,05/10/2012,DRUGS,ENDOCRINOLOGY,NHS BUSINESS SERVICES AUTHORITY,0001357311,"81,821.41 "
NHS,UHCW NHS TRUST,05/10/2012,DRUGS,NEUROLOGY,NHS BUSINESS SERVICES AUTHORITY,0001357311,2.18 
NHS,UHCW NHS TRUST,05/10/2012,DRUGS,GASTRO / ENDOSCOPY,NHS BUSINESS SERVICES AUTHORITY,0001357311,"1,560.37 "
NHS,UHCW NHS TRUST,05/10/2012,DRUGS,RENAL TRANSPLANT,NHS BUSINESS SERVICES AUTHORITY,0001357311,"24,630.00 "
NHS,UHCW NHS TRUST,05/10/2012,DRUGS,OPHTHALMOLOGY,NHS BUSINESS SERVICES AUTHORITY,0001357311,494.82 
NHS,UHCW NHS TRUST,05/10/2012,SERVICES REC FROM THIRD PARTY,CLRN,UNIVERSITY OF WARWICK,0001357514,"27,428.00 "
NHS,UHCW NHS TRUST,05/10/2012,OTHER ESTABLISHMENT COSTS,RESEARCH ACCOUNT,UNIVERSITY OF WARWICK,0001357696,"47,200.00 "
NHS,UHCW NHS TRUST,05/10/2012,BLOOD PRODUCTS,THEATRES,NHS BLOOD AND TRANSPLANT,0001357754,"261,078.69 "
NHS,UHCW NHS TRUST,05/10/2012,NHS CREDITORS < 1 YR,BALANCE SHEET,NHS LOGISTICS AUTHORITY,0001397304,"190,177.48 "
NHS,UHCW NHS TRUST,05/10/2012,NHS CREDITORS < 1 YR,BALANCE SHEET,NHS LOGISTICS AUTHORITY,0001397490,"185,780.24 "
NHS,UHCW NHS TRUST,05/10/2012,NHS CREDITORS < 1 YR,BALANCE SHEET,NHS LOGISTICS AUTHORITY,0001397491,"205,274.58 "
NHS,UHCW NHS TRUST,05/10/2012,NHS CREDITORS < 1 YR,BALANCE SHEET,NHS LOGISTICS AUTHORITY,0001397492,"147,392.00 "
NHS,UHCW NHS TRUST,05/10/2012,NHS CREDITORS < 1 YR,BALANCE SHEET,NHS LOGISTICS AUTHORITY,0001397493,"184,961.16 "
NHS,UHCW NHS TRUST,05/10/2012,NHS CREDITORS < 1 YR,BALANCE SHEET,NHS LOGISTICS AUTHORITY,0001397494,"189,396.51 "
NHS,UHCW NHS TRUST,05/10/2012,NHS CREDITORS < 1 YR,BALANCE SHEET,NHS LOGISTICS AUTHORITY,0001397503,"196,722.62 "
NHS,UHCW NHS TRUST,05/10/2012,SERVICES FROM PCTS,CORPORATE FINANCE,WARWICKSHIRE PCT,0001502054,"29,961.36 "
NHS,UHCW NHS TRUST,05/10/2012,LABORATORY EQUIP - PURCHASES,RUGBY MEDICAL SERVICES,ALPHA LABORATORIES LTD,0001557208,"47,628.00 "
NHS,UHCW NHS TRUST,05/10/2012,AUDITORS REMUNERATION,CORPORATE FINANCE,PRICE WATERHOUSE,0001557407,"26,851.20 "
NHS,UHCW NHS TRUST,05/10/2012,LABORATORY EQUIP - PURCHASES,BLOOD SCIENCES,ROCHE DIAGNOSTICS LTD,0001557445,"576,167.37 "
NHS,UHCW NHS TRUST,08/10/2012,CAPITAL EXPENDITURE IN YEAR,CAPITAL,ELEKTA ONCOLOGY SYSTEMS,0001314273,"177,704.40 "
NHS,UHCW NHS TRUST,08/10/2012,CAPITAL EXPENDITURE IN YEAR,CAPITAL,ELEKTA ONCOLOGY SYSTEMS,0001314273,"95,922.00 "
NHS,UHCW NHS TRUST,08/10/2012,CAPITAL EXPENDITURE IN YEAR,CAPITAL,ELEKTA ONCOLOGY SYSTEMS,0001314273,"3,097.20 "
NHS,UHCW NHS TRUST,08/10/2012,CAPITAL EXPENDITURE IN YEAR,CAPITAL,ELEKTA ONCOLOGY SYSTEMS,0001314273,"400,923.60 "
NHS,UHCW NHS TRUST,08/10/2012,CAPITAL EXPENDITURE IN YEAR,CAPITAL,ELEKTA ONCOLOGY SYSTEMS,0001314273,"900,300.00 "
NHS,UHCW NHS TRUST,08/10/2012,MEDICAL & SURGICAL EQUIP PURCH,CLIN PHYSICS & BIOMEDICAL ENG,ELEKTA ONCOLOGY SYSTEMS,0001314273,"70,754.40 "
NHS,UHCW NHS TRUST,15/10/2012,OTHER MISCELLANEOUS,CORPORATE FINANCE,NHS LITIGATION AUTHORITY,0001397505,"912,509.00 "
NHS,UHCW NHS TRUST,15/10/2012,OTHER MISCELLANEOUS,CORPORATE FINANCE,NHS LITIGATION AUTHORITY,0001397506,"27,038.00 "
NHS,UHCW NHS TRUST,17/10/2012,MEDICAL & SURGICAL EQUIP PURCH,THEATRES,JOHNSON & JOHNSON MEDICAL LTD,0001201731,972.33 
NHS,UHCW NHS TRUST,17/10/2012,MEDICAL & SURGICAL EQUIP PURCH,THEATRES,JOHNSON & JOHNSON MEDICAL LTD,0001201731,"2,260.44 "
NHS,UHCW NHS TRUST,17/10/2012,MEDICAL & SURGICAL EQUIP PURCH,THEATRES,JOHNSON & JOHNSON MEDICAL LTD,0001201731,"1,088.81 "
NHS,UHCW NHS TRUST,17/10/2012,MEDICAL & SURGICAL EQUIP PURCH,THEATRES,JOHNSON & JOHNSON MEDICAL LTD,0001201731,"5,414.98 "
NHS,UHCW NHS TRUST,17/10/2012,MEDICAL & SURGICAL EQUIP PURCH,THEATRES,JOHNSON & JOHNSON MEDICAL LTD,0001201731,336.82 
NHS,UHCW NHS TRUST,17/10/2012,MEDICAL & SURGICAL EQUIP PURCH,THEATRES,JOHNSON & JOHNSON MEDICAL LTD,0001201731,282.24 
NHS,UHCW NHS TRUST,17/10/2012,MEDICAL & SURGICAL EQUIP PURCH,THEATRES,JOHNSON & JOHNSON MEDICAL LTD,0001201731,773.57 
NHS,UHCW NHS TRUST,17/10/2012,MEDICAL & SURGICAL EQUIP PURCH,THEATRES,JOHNSON & JOHNSON MEDICAL LTD,0001201731,300.48 
NHS,UHCW NHS TRUST,17/10/2012,MEDICAL & SURGICAL EQUIP PURCH,THEATRES,JOHNSON & JOHNSON MEDICAL LTD,0001201731,896.04 
NHS,UHCW NHS TRUST,17/10/2012,MEDICAL & SURGICAL EQUIP PURCH,THEATRES,JOHNSON & JOHNSON MEDICAL LTD,0001201731,424.15 
NHS,UHCW NHS TRUST,17/10/2012,MEDICAL & SURGICAL EQUIP PURCH,THEATRES,JOHNSON & JOHNSON MEDICAL LTD,0001201731,"2,002.25 "
NHS,UHCW NHS TRUST,17/10/2012,MEDICAL & SURGICAL EQUIP PURCH,THEATRES,JOHNSON & JOHNSON MEDICAL LTD,0001201731,"2,120.76 "
NHS,UHCW NHS TRUST,17/10/2012,MEDICAL & SURGICAL EQUIP PURCH,THEATRES,JOHNSON & JOHNSON MEDICAL LTD,0001201731,727.30 
NHS,UHCW NHS TRUST,17/10/2012,MEDICAL & SURGICAL EQUIP PURCH,THEATRES,JOHNSON & JOHNSON MEDICAL LTD,0001201731,119.95 
NHS,UHCW NHS TRUST,17/10/2012,MEDICAL & SURGICAL EQUIP PURCH,THEATRES,JOHNSON & JOHNSON MEDICAL LTD,0001201731,275.88 
NHS,UHCW NHS TRUST,17/10/2012,MEDICAL & SURGICAL EQUIP PURCH,THEATRES,JOHNSON & JOHNSON MEDICAL LTD,0001201731,431.44 
NHS,UHCW NHS TRUST,17/10/2012,MEDICAL & SURGICAL EQUIP PURCH,THEATRES,JOHNSON & JOHNSON MEDICAL LTD,0001201731,477.92 
NHS,UHCW NHS TRUST,17/10/2012,MEDICAL & SURGICAL EQUIP PURCH,THEATRES,JOHNSON & JOHNSON MEDICAL LTD,0001201731,472.45 
NHS,UHCW NHS TRUST,17/10/2012,MEDICAL & SURGICAL EQUIP PURCH,THEATRES,JOHNSON & JOHNSON MEDICAL LTD,0001201731,193.31 
NHS,UHCW NHS TRUST,17/10/2012,MEDICAL & SURGICAL EQUIP PURCH,THEATRES,JOHNSON & JOHNSON MEDICAL LTD,0001201731,184.07 
NHS,UHCW NHS TRUST,17/10/2012,MEDICAL & SURGICAL EQUIP PURCH,THEATRES,JOHNSON & JOHNSON MEDICAL LTD,0001201731,"1,070.22 "
NHS,UHCW NHS TRUST,17/10/2012,MEDICAL & SURGICAL EQUIP PURCH,THEATRES,JOHNSON & JOHNSON MEDICAL LTD,0001201731,287.88 
NHS,UHCW NHS TRUST,17/10/2012,MEDICAL & SURGICAL EQUIP PURCH,THEATRES,JOHNSON & JOHNSON MEDICAL LTD,0001201731,"1,698.53 "
NHS,UHCW NHS TRUST,17/10/2012,MEDICAL & SURGICAL EQUIP PURCH,THEATRES,JOHNSON & JOHNSON MEDICAL LTD,0001201731,"1,972.01 "
NHS,UHCW NHS TRUST,17/10/2012,MEDICAL & SURGICAL EQUIP PURCH,THEATRES,JOHNSON & JOHNSON MEDICAL LTD,0001201731,719.70 
NHS,UHCW NHS TRUST,17/10/2012,MEDICAL & SURGICAL EQUIP PURCH,THEATRES,JOHNSON & JOHNSON MEDICAL LTD,0001201731,"1,871.23 "
NHS,UHCW NHS TRUST,17/10/2012,MEDICAL & SURGICAL EQUIP PURCH,THEATRES,JOHNSON & JOHNSON MEDICAL LTD,0001201731,"2,015.21 "
NHS,UHCW NHS TRUST,17/10/2012,MEDICAL & SURGICAL EQUIP PURCH,THEATRES,JOHNSON & JOHNSON MEDICAL LTD,0001201731,323.88 
NHS,UHCW NHS TRUST,17/10/2012,MEDICAL & SURGICAL EQUIP PURCH,THEATRES,JOHNSON & JOHNSON MEDICAL LTD,0001201731,920.04 
NHS,UHCW NHS TRUST,17/10/2012,SERVICES REC FROM THIRD PARTY,ORTHOPAEDICS,BMI MERIDAN HOSPITAL,0001203132,"46,844.91 "
NHS,UHCW NHS TRUST,17/10/2012,SERVICES REC FROM THIRD PARTY,ORTHOPAEDICS,BMI MERIDAN HOSPITAL,0001203553,"60,820.80 "
NHS,UHCW NHS TRUST,17/10/2012,SERVICES REC FROM THIRD PARTY,ORTHOPAEDICS,BMI MERIDAN HOSPITAL,0001203554,"229,917.30 "
NHS,UHCW NHS TRUST,17/10/2012,APPLIANCES & IMPLANTS,CARDIOLOGY,BOSTON SCIENTIFIC LTD,0001204608,"153,360.00 "
NHS,UHCW NHS TRUST,17/10/2012,SERVICES REC FROM THIRD PARTY,RENAL DIALYSIS,FRESENIUS MEDICAL CARE RENAL SERVICES LT,0001204668,"27,313.40 "
NHS,UHCW NHS TRUST,17/10/2012,SERVICES REC FROM THIRD PARTY,RENAL DIALYSIS,FRESENIUS MEDICAL CARE RENAL SERVICES LT,0001204669,"40,257.45 "
NHS,UHCW NHS TRUST,17/10/2012,SERVICES REC FROM THIRD PARTY,ORTHOPAEDICS,BMI MERIDAN HOSPITAL,0001204828,"-31,950.12 "
NHS,UHCW NHS TRUST,17/10/2012,SERVICES REC FROM THIRD PARTY,ORTHOPAEDICS,BMI MERIDAN HOSPITAL,0001205329,"-30,251.07 "
NHS,UHCW NHS TRUST,17/10/2012,INVENTORIES,BALANCE SHEET,HEALTHCARE PRODUCT (29533813),0001314237,"71,868.00 "
NHS,UHCW NHS TRUST,17/10/2012,FURNITURE OFFICE & COMP EQUIP,MEDICAL DIRECTORSHIP,DENDRITE CLINICAL SYSTEMS LTD,0001314644,"1,680.00 "
NHS,UHCW NHS TRUST,17/10/2012,FURNITURE OFFICE & COMP EQUIP,MEDICAL DIRECTORSHIP,DENDRITE CLINICAL SYSTEMS LTD,0001314644,"4,304.40 "
NHS,UHCW NHS TRUST,17/10/2012,FURNITURE OFFICE & COMP EQUIP,MEDICAL DIRECTORSHIP,DENDRITE CLINICAL SYSTEMS LTD,0001314644,"22,965.60 "
NHS,UHCW NHS TRUST,17/10/2012,CONSULTANTS,ENDOCRINOLOGY,UNIVERSITY OF WARWICK,0001355843,"54,712.08 "
NHS,UHCW NHS TRUST,17/10/2012,INVENTORIES,BALANCE SHEET,NOVARTIS PHARMACEUTICALS LTD,0001358305,"62,078.04 "
NHS,UHCW NHS TRUST,17/10/2012,FURNITURE OFFICE & COMP EQUIP,RUGBY MEDICAL SERVICES,NEOPOST FINANCE LTD,0001358360,"36,474.90 "
NHS,UHCW NHS TRUST,17/10/2012,CONSULTANTS,SIFT,UNIVERSITY OF WARWICK,0001358495,"33,789.24 "
NHS,UHCW NHS TRUST,17/10/2012,CONSULTANTS,SIFT,UNIVERSITY OF WARWICK,0001358496,"33,740.88 "
NHS,UHCW NHS TRUST,17/10/2012,CONSULTANTS,SIFT,UNIVERSITY OF WARWICK,0001358498,"44,319.12 "
NHS,UHCW NHS TRUST,17/10/2012,CONSULTANTS,SIFT,UNIVERSITY OF WARWICK,0001358499,"27,772.48 "
NHS,UHCW NHS TRUST,17/10/2012,CONSULTANTS,OBSTETRICS AND GYNAECOLOGY,UNIVERSITY OF WARWICK,0001358503,"33,308.31 "
NHS,UHCW NHS TRUST,17/10/2012,INVENTORIES,BALANCE SHEET,ALLIANCE HEALTHCARE,0001502337,"32,267.67 "
NHS,UHCW NHS TRUST,17/10/2012,INVENTORIES,BALANCE SHEET,ROCHE PRODUCTS LTD,0001557523,"25,146.60 "
NHS,UHCW NHS TRUST,17/10/2012,RENTS & RATES,RENAL DIALYSIS,STRATFORD HEALTHCARE LTD,0001557559,"53,601.59 "
NHS,UHCW NHS TRUST,17/10/2012,INVENTORIES,BALANCE SHEET,ROCHE PRODUCTS LTD,0001557658,"41,611.63 "
NHS,UHCW NHS TRUST,17/10/2012,INVENTORIES,BALANCE SHEET,ROCHE PRODUCTS LTD,0001557660,"38,658.72 "
NHS,UHCW NHS TRUST,17/10/2012,INVENTORIES,BALANCE SHEET,ROCHE PRODUCTS LTD,0001558005,"74,283.12 "
NHS,UHCW NHS TRUST,19/10/2012,X-RAY EQUIPMENT - MAINTENANCE,RADIOLOGY,COVENTRY & RUGBY HOSPITAL COMPANY PLC,0001309160,"15,733.65 "
NHS,UHCW NHS TRUST,19/10/2012,X-RAY EQUIPMENT - MAINTENANCE,RADIOLOGY,COVENTRY & RUGBY HOSPITAL COMPANY PLC,0001309160,"16,802.54 "
NHS,UHCW NHS TRUST,19/10/2012,X-RAY EQUIPMENT - MAINTENANCE,RADIOLOGY,COVENTRY & RUGBY HOSPITAL COMPANY PLC,0001309160,127.66 
NHS,UHCW NHS TRUST,19/10/2012,TRAVEL & SUBSISTENCE,RESUS,COVENTRY & RUGBY HOSPITAL COMPANY PLC,0001314276,12.47 
NHS,UHCW NHS TRUST,19/10/2012,TRAVEL & SUBSISTENCE,RESEARCH ACCOUNT,COVENTRY & RUGBY HOSPITAL COMPANY PLC,0001314276,8.31 
NHS,UHCW NHS TRUST,19/10/2012,OTHER ESTABLISHMENT COSTS,ESTATES,COVENTRY & RUGBY HOSPITAL COMPANY PLC,0001314276,"85,288.93 "
NHS,UHCW NHS TRUST,19/10/2012,OTHER ESTABLISHMENT COSTS,ESTATES,COVENTRY & RUGBY HOSPITAL COMPANY PLC,0001314276,-263.89 
NHS,UHCW NHS TRUST,19/10/2012,OTHER ESTABLISHMENT COSTS,ESTATES,COVENTRY & RUGBY HOSPITAL COMPANY PLC,0001314276,"91,305.21 "
NHS,UHCW NHS TRUST,19/10/2012,OTHER ESTABLISHMENT COSTS,ESTATES,COVENTRY & RUGBY HOSPITAL COMPANY PLC,0001314276,"3,596.96 "
NHS,UHCW NHS TRUST,19/10/2012,OTHER ESTABLISHMENT COSTS,ESTATES,COVENTRY & RUGBY HOSPITAL COMPANY PLC,0001314276,"16,156.41 "
NHS,UHCW NHS TRUST,19/10/2012,RENTS & RATES,ESTATES,COVENTRY & RUGBY HOSPITAL COMPANY PLC,0001314277,"-716,267.96 "
NHS,UHCW NHS TRUST,19/10/2012,BUILDING & ENG EQUIPMENT,ESTATES,COVENTRY & RUGBY HOSPITAL COMPANY PLC,0001314804,"-109,744.55 "
NHS,UHCW NHS TRUST,19/10/2012,UTILITIES,RUGBY ESTATES SERVICES,COVENTRY & RUGBY HOSPITAL COMPANY PLC,0001314806,"31,572.35 "
NHS,UHCW NHS TRUST,19/10/2012,RENTS & RATES,ESTATES,COVENTRY & RUGBY HOSPITAL COMPANY PLC,0001314806,"16,863,614.22 "
NHS,UHCW NHS TRUST,19/10/2012,UTILITIES,RUGBY ESTATES SERVICES,COVENTRY & RUGBY HOSPITAL COMPANY PLC,0001314806,"49,520.86 "
NHS,UHCW NHS TRUST,19/10/2012,BUILDING & ENG EQUIPMENT,ESTATES,COVENTRY & RUGBY HOSPITAL COMPANY PLC,0001314806,"8,546.15 "
NHS,UHCW NHS TRUST,19/10/2012,BUILDING & ENG EQUIPMENT,ESTATES,COVENTRY & RUGBY HOSPITAL COMPANY PLC,0001314806,"5,355.12 "
NHS,UHCW NHS TRUST,19/10/2012,INTERNAL RECHARGES,SIFT,COVENTRY & RUGBY HOSPITAL COMPANY PLC,0001314806,"5,293.15 "
NHS,UHCW NHS TRUST,19/10/2012,INTERNAL RECHARGES,SIFT,COVENTRY & RUGBY HOSPITAL COMPANY PLC,0001314806,"4,565.30 "
NHS,UHCW NHS TRUST,19/10/2012,BUILDING & ENG EQUIPMENT,ESTATES,COVENTRY & RUGBY HOSPITAL COMPANY PLC,0001314806,"118,900.78 "
NHS,UHCW NHS TRUST,19/10/2012,OTHER ESTABLISHMENT COSTS,ESTATES,COVENTRY & RUGBY HOSPITAL COMPANY PLC,0001314806,"-39,039.35 "
NHS,UHCW NHS TRUST,19/10/2012,OTHER ESTABLISHMENT COSTS,ESTATES,COVENTRY & RUGBY HOSPITAL COMPANY PLC,0001314806,"1,780.84 "
NHS,UHCW NHS TRUST,19/10/2012,OTHER ESTABLISHMENT COSTS,ESTATES,COVENTRY & RUGBY HOSPITAL COMPANY PLC,0001314806,"1,978,489.23 "
NHS,UHCW NHS TRUST,19/10/2012,OTHER ESTABLISHMENT COSTS,ESTATES,COVENTRY & RUGBY HOSPITAL COMPANY PLC,0001314806,"-647,258.82 "
NHS,UHCW NHS TRUST,19/10/2012,BUILDING & ENG EQUIPMENT,ESTATES,COVENTRY & RUGBY HOSPITAL COMPANY PLC,0001314806,"4,181.97 "
NHS,UHCW NHS TRUST,19/10/2012,BUILDING & ENG EQUIPMENT,ESTATES,COVENTRY & RUGBY HOSPITAL COMPANY PLC,0001314806,"1,691.05 "
NHS,UHCW NHS TRUST,19/10/2012,UTILITIES,ESTATES,COVENTRY & RUGBY HOSPITAL COMPANY PLC,0001314806,"2,300.47 "
NHS,UHCW NHS TRUST,19/10/2012,UTILITIES,ESTATES,COVENTRY & RUGBY HOSPITAL COMPANY PLC,0001314806,"121,784.93 "
NHS,UHCW NHS TRUST,19/10/2012,OTHER MISCELLANEOUS,ESTATES,COVENTRY & RUGBY HOSPITAL COMPANY PLC,0001314806,"31,995.01 "
NHS,UHCW NHS TRUST,19/10/2012,UTILITIES,ESTATES,COVENTRY & RUGBY HOSPITAL COMPANY PLC,0001314806,"1,210.23 "
NHS,UHCW NHS TRUST,19/10/2012,OTHER ESTABLISHMENT COSTS,ESTATES,COVENTRY & RUGBY HOSPITAL COMPANY PLC,0001314806,"634,293.57 "
NHS,UHCW NHS TRUST,19/10/2012,OTHER ESTABLISHMENT COSTS,ESTATES,COVENTRY & RUGBY HOSPITAL COMPANY PLC,0001314806,"1,793.94 "
NHS,UHCW NHS TRUST,19/10/2012,OTHER ESTABLISHMENT COSTS,ESTATES,COVENTRY & RUGBY HOSPITAL COMPANY PLC,0001314806,"2,405.94 "
NHS,UHCW NHS TRUST,19/10/2012,OTHER ESTABLISHMENT COSTS,ESTATES,COVENTRY & RUGBY HOSPITAL COMPANY PLC,0001314806,"12,968.58 "
NHS,UHCW NHS TRUST,24/10/2012,MEDICAL & SURGICAL EQUIP PURCH,CARDIOLOGY,BOSTON SCIENTIFIC LTD,0001205367,10.20 
NHS,UHCW NHS TRUST,24/10/2012,MEDICAL & SURGICAL EQUIP PURCH,CARDIOLOGY,BOSTON SCIENTIFIC LTD,0001205367,"35,280.00 "
NHS,UHCW NHS TRUST,24/10/2012,CAPITAL EXPENDITURE IN YEAR,CAPITAL,SYNTHES LTD,0001312359,"13,953.60 "
NHS,UHCW NHS TRUST,24/10/2012,CAPITAL EXPENDITURE IN YEAR,CAPITAL,SYNTHES LTD,0001312359,"14,567.58 "
NHS,UHCW NHS TRUST,24/10/2012,CAPITAL EXPENDITURE IN YEAR,CAPITAL,SYNTHES LTD,0001312359,"1,647.00 "
NHS,UHCW NHS TRUST,24/10/2012,CAPITAL EXPENDITURE IN YEAR,CAPITAL,SYNTHES LTD,0001312359,"1,647.00 "
NHS,UHCW NHS TRUST,24/10/2012,CAPITAL EXPENDITURE IN YEAR,CAPITAL,SYNTHES LTD,0001312359,"6,058.80 "
NHS,UHCW NHS TRUST,24/10/2012,CAPITAL EXPENDITURE IN YEAR,CAPITAL,SYNTHES LTD,0001312359,"6,058.80 "
NHS,UHCW NHS TRUST,24/10/2012,FURNITURE OFFICE & COMP EQUIP,INFORMATION AND COMMS TECH,CSC COMPUTER SCIENCES LTD,0001312864,"71,924.82 "
NHS,UHCW NHS TRUST,24/10/2012,FURNITURE OFFICE & COMP EQUIP,INFORMATION AND COMMS TECH,CSC COMPUTER SCIENCES LTD,0001313952,"71,924.82 "
NHS,UHCW NHS TRUST,24/10/2012,SERVICES REC FROM THIRD PARTY,CLINICAL HAEMATOLOGY,HEALTHCARE AT HOME LTD,0001314183,"127,500.00 "
NHS,UHCW NHS TRUST,24/10/2012,SERVICES REC FROM NHS BODIES,CELLULAR PATHOLOGY,HOLOGIC UK LTD,0001314213,60.00 
NHS,UHCW NHS TRUST,24/10/2012,SERVICES REC FROM NHS BODIES,CELLULAR PATHOLOGY,HOLOGIC UK LTD,0001314213,"55,920.00 "
NHS,UHCW NHS TRUST,24/10/2012,SERVICES REC FROM NHS BODIES,RENAL TRANSPLANT,NHS BLOOD AND TRANSPLANT,0001357328,"38,990.90 "
NHS,UHCW NHS TRUST,24/10/2012,MEDICAL & SURGICAL EQUIP PURCH,BREAST SCREENING,NHS SUPPLYCHAIN,0001357494,"19,478.00 "
NHS,UHCW NHS TRUST,24/10/2012,MEDICAL & SURGICAL EQUIP PURCH,BREAST SCREENING,NHS SUPPLYCHAIN,0001357494,"19,478.00 "
NHS,UHCW NHS TRUST,24/10/2012,MEDICAL & SURGICAL EQUIP PURCH,BREAST SCREENING,NHS SUPPLYCHAIN,0001357494,"21,978.00 "
NHS,UHCW NHS TRUST,24/10/2012,FURNITURE OFFICE & COMP EQUIP,INFORMATION AND COMMS TECH,THE LEARNING CLINIC,0001357911,"63,028.86 "
NHS,UHCW NHS TRUST,24/10/2012,POSTAGE,INFORMATION AND COMMS TECH,TNT ARCHIVE SERVICES,0001358215,"160,951.70 "
NHS,UHCW NHS TRUST,24/10/2012,DRUGS,RENAL DIALYSIS,UNICARE (BAXTERS RENAL),0001358255,"6,113.42 "
NHS,UHCW NHS TRUST,24/10/2012,DRUGS,RENAL DIALYSIS,UNICARE (BAXTERS RENAL),0001358255,582.72 
NHS,UHCW NHS TRUST,24/10/2012,DRUGS,RENAL DIALYSIS,UNICARE (BAXTERS RENAL),0001358255,"2,059.20 "
NHS,UHCW NHS TRUST,24/10/2012,DRUGS,RENAL DIALYSIS,UNICARE (BAXTERS RENAL),0001358255,716.10 
NHS,UHCW NHS TRUST,24/10/2012,DRUGS,RENAL DIALYSIS,UNICARE (BAXTERS RENAL),0001358255,732.16 
NHS,UHCW NHS TRUST,24/10/2012,DRUGS,RENAL DIALYSIS,UNICARE (BAXTERS RENAL),0001358255,"14,757.60 "
NHS,UHCW NHS TRUST,24/10/2012,DRUGS,RENAL DIALYSIS,UNICARE (BAXTERS RENAL),0001358255,"7,364.91 "
NHS,UHCW NHS TRUST,24/10/2012,DRUGS,RENAL DIALYSIS,UNICARE (BAXTERS RENAL),0001358255,"36,561.75 "
NHS,UHCW NHS TRUST,24/10/2012,DRUGS,RENAL DIALYSIS,UNICARE (BAXTERS RENAL),0001358255,"7,061.64 "
NHS,UHCW NHS TRUST,24/10/2012,SERVICES REC FROM NHS BODIES,RENAL TRANSPLANT,NHS BLOOD AND TRANSPLANT,0001358430,"32,584.49 "
NHS,UHCW NHS TRUST,24/10/2012,CONSULTANTS,SIFT,UNIVERSITY OF WARWICK,0001358497,"44,319.12 "
NHS,UHCW NHS TRUST,24/10/2012,CONSULTANTS,SIFT,UNIVERSITY OF WARWICK,0001358500,"52,010.35 "
NHS,UHCW NHS TRUST,24/10/2012,CONSULTANTS,OBSTETRICS AND GYNAECOLOGY,UNIVERSITY OF WARWICK,0001358502,"47,871.03 "
NHS,UHCW NHS TRUST,24/10/2012,DRUGS,RHEUMATOLOGY,NHS BUSINESS SERVICES AUTHORITY,0001358715,"193,550.07 "
NHS,UHCW NHS TRUST,24/10/2012,DRUGS,DERMATOLOGY,NHS BUSINESS SERVICES AUTHORITY,0001358715,"15,783.82 "
NHS,UHCW NHS TRUST,24/10/2012,DRUGS,ENDOCRINOLOGY,NHS BUSINESS SERVICES AUTHORITY,0001358715,"86,211.00 "
NHS,UHCW NHS TRUST,24/10/2012,DRUGS,NEUROLOGY,NHS BUSINESS SERVICES AUTHORITY,0001358715,6.87 
NHS,UHCW NHS TRUST,24/10/2012,DRUGS,GASTRO / ENDOSCOPY,NHS BUSINESS SERVICES AUTHORITY,0001358715,960.14 
NHS,UHCW NHS TRUST,24/10/2012,DRUGS,RENAL TRANSPLANT,NHS BUSINESS SERVICES AUTHORITY,0001358715,"24,120.61 "
NHS,UHCW NHS TRUST,24/10/2012,DRUGS,OPHTHALMOLOGY,NHS BUSINESS SERVICES AUTHORITY,0001358715,368.81 
NHS,UHCW NHS TRUST,24/10/2012,POSTAGE,INFORMATION AND COMMS TECH,TNT ARCHIVE SERVICES,0001358718,"160,506.70 "
NHS,UHCW NHS TRUST,24/10/2012,NHS CREDITORS < 1 YR,BALANCE SHEET,NHS LOGISTICS AUTHORITY,0001397510,"179,133.74 "
NHS,UHCW NHS TRUST,24/10/2012,NHS CREDITORS < 1 YR,BALANCE SHEET,NHS LOGISTICS AUTHORITY,0001397511,"196,494.88 "
NHS,UHCW NHS TRUST,24/10/2012,NHS CREDITORS < 1 YR,BALANCE SHEET,NHS LOGISTICS AUTHORITY,0001397512,"169,217.87 "
NHS,UHCW NHS TRUST,24/10/2012,INVENTORIES,BALANCE SHEET,A A H PHARMACEUTICALS LTD,0001502727,"310,000.00 "
NHS,UHCW NHS TRUST,24/10/2012,RENTS & RATES,ESTATES,COVENTRY CITY COUNCIL,0001502728,"282,128.00 "
NHS,UHCW NHS TRUST,24/10/2012,RENTS & RATES,RUGBY ESTATES SERVICES,RUGBY BOROUGH COUNCIL,0001502729,"28,625.00 "
NHS,UHCW NHS TRUST,24/10/2012,MEDICAL & SURGICAL EQUIP PURCH,CARDIOLOGY,ST JUDE MEDICAL UK LTD,0001557471,"39,000.00 "
NHS,UHCW NHS TRUST,24/10/2012,INVENTORIES,BALANCE SHEET,ROCHE PRODUCTS LTD,0001558345,"38,658.72 "
NHS,UHCW NHS TRUST,17/10/2012,OTHER ESTABLISHMENT COSTS,EXECUTIVES,HARRISON CLARK,CHQ0133942,"59,766.82 "
NHS,UHCW NHS TRUST,22/10/2012,AGENCY NURSING,RESPIRATORY,PEOPLE IN ACTION,CHQ0133972,"39,243.75 "
